fUSD/lending_fUSD_20240525
["ID","MTS","AMOUNT","RATE_DAILY","PERIOD"]
[327931391,1716666632470,-155.12,0.00023464,2]
[327931393,1716666632479,-250.0,0.00023468,2]
[327931395,1716666632488,-250.0,0.00023469,2]
[327931397,1716666632497,-150.0,0.00023553,2]
[327931399,1716666632506,-1000.0,0.00023567,2]
[327931401,1716666632516,-155.12,0.00023581,2]
[327931403,1716666632529,-1759.13,0.00023592,2]
[327931405,1716666632538,-164.18,0.00023708,2]
[327931407,1716666632547,-152.98616253,0.00023867,2]
[327931410,1716666632559,-186.01041923,0.00023948,2]
[327931411,1716666632568,-517.85,0.00023999,2]
[327931414,1716666632578,-164.62631389,0.00024082,2]
[327931416,1716666632587,-152.60818584,0.00024395,2]
[327931418,1716666632596,-900.0,0.00025636,2]
[327931419,1716666632606,-500.0,0.00025636,2]
[327931421,1716666632615,-152.98616253,0.00025715,2]
[327931423,1716666632625,-164.03435616,0.00025831,7]
[327931426,1716666632635,-180.0,0.00026026,2]
[327931428,1716666632645,-152.60818584,0.00026086,2]
[327931430,1716666632654,-900.0,0.00026184,2]
[327931432,1716666632663,-517.85,0.00026262,2]
[327931434,1716666632672,-150.44,0.00026264,2]
[327931436,1716666632681,-524.53,0.00026264,2]
[327931438,1716666632690,-300.0,0.00026264,2]
[327931439,1716666632701,-524.53,0.00026264,2]
[327931441,1716666632710,-150.0,0.00026264,2]
[327931443,1716666632719,-421.02,0.00026264,2]
[327931445,1716666632728,-524.53,0.00026264,2]
[327931447,1716666632738,-150.0,0.00026264,2]
[327931449,1716666632747,-524.53,0.00026264,2]
[327931451,1716666632756,-150.0,0.00026264,2]
[327931453,1716666632766,-523.58,0.00026264,2]
[327931455,1716666632776,-1759.13,0.00026331,2]
[327931457,1716666632785,-1000.0,0.00026513,2]
[327931459,1716666632795,-150.0,0.0002666,2]
[327931461,1716666632805,-150.0,0.00026685,2]
[327931463,1716666632814,-352.18,0.00026685,2]
[327931465,1716666632822,-421.16,0.00026685,2]
[327931467,1716666632832,-421.16,0.00026685,2]
[327931469,1716666632841,-300.0,0.00026685,2]
[327931471,1716666632850,-300.0,0.00026685,2]
[327931473,1716666632859,-352.18,0.00026685,2]
[327931476,1716666632873,-300.0,0.00026685,2]
[327931478,1716666632882,-150.0,0.00026685,2]
[327931480,1716666632892,-150.0,0.00026685,2]
[327931482,1716666632901,-163.63,0.00026685,2]
[327931484,1716666632910,-900.0,0.00026732,2]
[327931486,1716666632919,-500.0,0.00026732,2]
[327931488,1716666632929,-5079.69634499,0.00026864,2]
[327931490,1716666632938,-339.17922691,0.00026918,2]
[327931492,1716666632947,-200.0,0.00026979,2]
[327931494,1716666632956,-5447.92066965,0.00026999,2]
[327931496,1716666632965,-36286.79930281,0.00026999,2]
[327931498,1716666632974,-810.087,0.00027,2]
[327931500,1716666632983,-372.75636686,0.00027,2]
[327931502,1716666632992,-175.14654736,0.00027,2]
[327931504,1716666633005,-3762.8056,0.00027,2]
[327931506,1716666633014,-1268.51872225,0.00027,2]
[327931508,1716666633023,-500.0,0.00027006,2]
[327931510,1716666633032,-900.0,0.00027006,2]
[327931512,1716666633043,-167.73321303,0.00027087,2]
[327931514,1716666633053,-160.62189487,0.00027089,2]
[327931516,1716666633062,-151.88,0.00027089,2]
[327931518,1716666633071,-160.62189487,0.0002709,2]
[327931520,1716666633080,-151.88,0.0002709,2]
[327931522,1716666633090,-151.88,0.0002709,2]
[327931524,1716666633099,-151.88,0.0002709,2]
[327931527,1716666633108,-167.30304453,0.00027092,2]
[327931529,1716666633118,-32069.0,0.00027096,2]
[327931530,1716666633127,-460.637529,0.00027096,2]
[327931532,1716666633136,-3102.15607519,0.00027097,2]
[327931535,1716666633148,-604.89249651,0.00027097,2]
[327931538,1716666633167,-164.62631389,0.00025541,2]
[327931540,1716666633176,-97.62166621,0.00027097,2]
[327931542,1716666633187,-287.87646049,0.00027097,2]
[327931546,1716666633213,-651.82,0.00027097,2]
[327931548,1716666633225,-3010.93224685,0.00027097,2]
[327931550,1716666633235,-199.41542452,0.00027097,2]
[327931552,1716666633244,-6960.32777893,0.00027097,2]
[327931554,1716666633254,-187.12841698,0.00027097,2]
[327931556,1716666633264,-339.58597213,0.00027097,2]
[327931559,1716666633275,-689238.77947947,0.00027099,2]
[327931561,1716666633284,-500.0,0.00027099,2]
[327931563,1716666633294,-500.0,0.00027099,2]
[327931565,1716666633305,-500.0,0.00027099,2]
[327931567,1716666633314,-514902.98269736,0.000271,3]
[327931569,1716666633323,-135627.07120726,0.000271,2]
[327931571,1716666633340,-39204.6131499,0.000271,2]
[327931574,1716666633349,-151.0,0.000271,7]
[327931575,1716666633359,-151.0,0.000271,7]
[327931578,1716666633369,-151.0,0.000271,7]
[327931580,1716666633379,-151.0,0.000271,7]
[327931582,1716666633389,-151.0,0.000271,7]
[327931584,1716666633398,-151.0,0.000271,7]
[327931586,1716666633407,-364.760518,0.000271,7]
[327931588,1716666633418,-364.760518,0.000271,7]
[327931590,1716666633428,-150.0,0.000271,5]
[327931592,1716666633438,-290.10042,0.000271,7]
[327931594,1716666633447,-151.0,0.000271,7]
[327931596,1716666633457,-151.88,0.00027184,2]
[327931598,1716666633467,-4557.2259359,0.00027187,2]
[327931600,1716666633476,-533.8622923,0.00027187,2]
[327931602,1716666633486,-2549.443037,0.00027187,2]
[327931604,1716666633495,-542.0765946,0.00027187,2]
[327931606,1716666633504,-155.22619343,0.00027187,2]
[327931608,1716666633514,-160.08908314,0.00027188,2]
[327931610,1716666633529,-787.80104941,0.00027188,2]
[327931612,1716666633538,-2464.30819123,0.00027189,2]
[327931614,1716666633548,-1180.1693692,0.0002719,2]
[327931616,1716666633558,-155.29665707,0.0002719,2]
[327931619,1716666633569,-204.9936907,0.0002719,2]
[327931621,1716666633578,-323.49456937,0.0002719,2]
[327931623,1716666633588,-14024.89873075,0.0002719,2]
[327932062,1716666638034,-164.38,0.00026296,2]
[327932063,1716666638043,-164.62631389,0.00027,2]
[327932064,1716666638054,-668.2609118,0.00027187,2]
[327932065,1716666638063,-80.81276961,0.0002719,2]
[327932066,1716666638074,-1095.36771121,0.0002719,2]
[327932067,1716666638086,-1840.7599115,0.0002719,2]
[327932068,1716666638097,-1847.439928,0.0002719,2]
[327932069,1716666638108,-343.76811641,0.0002719,2]
[327932070,1716666638208,-13847.5,0.0002719,2]
[327932071,1716666638219,-1051.01292303,0.0002719,2]
[327932072,1716666638339,-1703.41591,0.0002719,2]
[327932073,1716666638351,-429.08694931,0.0002719,2]
[327932204,1716666641285,-410.21359694,0.00027097,2]
[327932205,1716666641297,-1048.0,0.00027097,2]
[327932206,1716666641310,-257.16502333,0.00027097,2]
[327932267,1716666643577,-1619.86162,0.00027,2]
[327932268,1716666643590,-3771.59999998,0.00027,2]
[327932293,1716666743092,173.66,0.00025992,120]
[327932316,1716667832380,-155.0,0.0001397,2]
[327932317,1716667832392,-496.42246787,0.00013971,2]
[327932318,1716667832403,-152.82,0.00013973,2]
[327932319,1716667832412,-155.0,0.00017257,2]
[327932320,1716667832422,-318.20777843,0.00017257,2]
[327932321,1716667832431,-155.0,0.00019451,2]
[327932322,1716667832440,-499.99,0.00019452,2]
[327932323,1716667832450,-865.08107924,0.000195,2]
[327932324,1716667832459,-569.1,0.00020793,2]
[327932325,1716667832469,-1000.0,0.00022357,2]
[327932326,1716667832479,-1819.76,0.00022708,2]
[327932327,1716667832488,-569.1,0.00023056,2]
[327932328,1716667832497,-250.0,0.00023441,2]
[327932329,1716667832507,-182.92,0.000235,2]
[327932330,1716667832516,-1000.0,0.00023533,2]
[327932331,1716667832525,-150.0,0.00023608,2]
[327932332,1716667832535,-810.1,0.0002386,2]
[327932333,1716667832544,-174.0,0.00024,2]
[327932334,1716667832553,-1024.36555324,0.0002407,2]
[327932335,1716667832562,-250.0,0.00024142,2]
[327932336,1716667832571,-208.84,0.00024296,2]
[327932337,1716667832581,-6583.81527122,0.00024445,2]
[327932352,1716667832890,-578.0391,0.00024445,2]
[327932353,1716667832903,-5632.91,0.00024445,2]
[327932354,1716667832923,-1241.72374471,0.00024445,2]
[327932357,1716667838545,-9853.51188407,0.00024445,2]
[327932358,1716667838554,-500.0,0.00024506,2]
[327932359,1716667838564,-2984.94146219,0.00024572,2]
[327932360,1716667838575,-521.60000002,0.00024572,2]
[327932362,1716667840948,-3810.65026863,0.00024572,2]
[327932363,1716667841019,-2133.7500313,0.00024572,2]
[327932364,1716667841033,-3059.446587,0.00024572,2]
[327932365,1716667841540,-10124.99999997,0.00024572,2]
[327932395,1716667844388,-1686.05,0.00024572,2]
[327932396,1716667844430,-1180.15842999,0.00024572,2]
[327932410,1716667846345,-1100.0,0.00024572,2]
[327932412,1716667846357,-4940.53384511,0.00024572,2]
[327932414,1716667846368,-11881.86937579,0.00024572,2]
[327932417,1716667846378,-250.0,0.00024587,2]
[327932418,1716667846388,-182.11,0.00024606,2]
[327932421,1716667846398,-1000.0,0.00024777,2]
[327932422,1716667846409,-157.42,0.00024808,2]
[327932424,1716667846418,-32658.11937261,0.00024898,2]
[327932426,1716667846427,-32336.95102973,0.00024898,2]
[327932428,1716667846438,-321.16834279,0.00024898,2]
[327932429,1716667846448,-32658.11937252,0.00024898,2]
[327932430,1716667846457,-25377.8102336,0.00024898,2]
[327932431,1716667846469,-7280.30913892,0.00024898,2]
[327932432,1716667846478,-171.29,0.00025166,2]
[327932433,1716667846488,-569.1,0.0002532,2]
[327932434,1716667846498,-164.18,0.00025559,2]
[327932435,1716667846507,-29751.51311326,0.00025798,2]
[327932436,1716667846518,-2906.60625926,0.00025798,2]
[327932437,1716667846528,-150.0,0.00025863,2]
[327932438,1716667846538,-421.16,0.00025863,2]
[327932439,1716667846547,-163.63,0.00025863,2]
[327932440,1716667846557,-352.18,0.00025863,2]
[327932441,1716667846567,-150.0,0.00025863,2]
[327932442,1716667846576,-163.63,0.00025863,2]
[327932443,1716667846586,-352.18,0.00025863,2]
[327932444,1716667846596,-150.0,0.00025863,2]
[327932445,1716667846606,-421.16,0.00025863,2]
[327932446,1716667846615,-150.0,0.00025863,2]
[327932447,1716667846624,-352.18,0.00025863,2]
[327932448,1716667846634,-421.16,0.00025863,2]
[327932449,1716667846645,-150.0,0.00025863,2]
[327932450,1716667846654,-150.0,0.00025863,2]
[327932451,1716667846663,-160.46,0.00025863,2]
[327932452,1716667846673,-150.0,0.00025863,2]
[327932453,1716667846682,-421.16,0.00025863,2]
[327932454,1716667846691,-352.18,0.00025863,2]
[327932455,1716667846701,-150.0,0.00025863,2]
[327932456,1716667846722,-421.16,0.00025863,2]
[327932457,1716667846731,-150.0,0.00025863,2]
[327932458,1716667846741,-150.0,0.00025863,2]
[327932459,1716667846751,-421.16,0.00025863,2]
[327932460,1716667846762,-150.0,0.00025863,2]
[327932461,1716667846772,-150.0,0.00025863,2]
[327932462,1716667846781,-421.16,0.00025863,2]
[327932463,1716667846791,-150.0,0.00025863,2]
[327932464,1716667846801,-421.16,0.00025863,2]
[327932465,1716667846811,-512.11,0.00025863,2]
[327932466,1716667846821,-628.30009709,0.00025992,2]
[327932467,1716667846831,-445.6637425,0.00025992,2]
[327932469,1716667846841,-1044.31301003,0.00025992,2]
[327932470,1716667846851,-336.83465564,0.00025992,7]
[327932471,1716667846861,-257.24940323,0.00025992,2]
[327932472,1716667846870,-25613.92198732,0.00025992,2]
[327932473,1716667846883,-11883.09483098,0.00025992,2]
[327932474,1716667846893,-152.98616255,0.0002609,2]
[327932475,1716667846904,-600.0,0.000264,9]
[327932476,1716667846914,-1000.0,0.00026475,2]
[327932477,1716667846923,-1300.0,0.000265,9]
[327932478,1716667846934,-810.1,0.000266,2]
[327932479,1716667846944,-2000.0,0.000266,9]
[327932480,1716667846954,-2700.0,0.000267,9]
[327932481,1716667846964,-3400.0,0.000268,9]
[327932482,1716667846974,-1738.55,0.0002682,2]
[327932483,1716667846984,-600.0,0.000269,9]
[327932484,1716667846997,-500.0,0.00027006,2]
[327932485,1716667847007,-900.0,0.00027006,2]
[327932486,1716667847017,-700.0,0.00027006,2]
[327932487,1716667847027,-325.91,0.00027082,2]
[327932488,1716667847036,-352.18,0.00027082,2]
[327932489,1716667847047,-341.94,0.00027082,2]
[327932490,1716667847057,-2108.5384,0.00027097,2]
[327932491,1716667847066,-167.73321303,0.00027097,2]
[327932492,1716667847075,-150.0,0.000271,5]
[327932493,1716667847085,-6216.2005173,0.00027136,2]
[327932494,1716667847095,-151.88,0.00027181,2]
[327932495,1716667847104,-160.62189489,0.00027181,2]
[327932496,1716667847114,-212.1639931,0.00027185,2]
[327932497,1716667847124,-968.3656286,0.00027185,2]
[327932498,1716667847133,-4554.3250413,0.00027185,2]
[327932499,1716667847143,-1528.32172985,0.00027185,2]
[327932500,1716667847206,-541.8949346,0.00027185,2]
[327932501,1716667847218,-256.16530737,0.00027185,2]
[327932502,1716667847230,-264.76535094,0.00027185,2]
[327932503,1716667847242,-315.02007423,0.00027185,2]
[327932504,1716667980807,157.052605,0.00031,120]
[327932505,1716667981812,157.052605,0.00031,120]
[327932506,1716667982562,157.052605,0.00031,120]
[327932507,1716667983168,157.052605,0.00031,120]
[327932508,1716667983687,157.052605,0.00031,120]
[327932509,1716667984303,157.052605,0.00031,120]
[327932510,1716667984950,157.052605,0.00031,120]
[327932511,1716667985669,157.052605,0.00031,120]
[327932512,1716667986413,157.052605,0.00031,120]
[327932513,1716667994099,157.052605,0.00031,120]
[327932514,1716668018696,189.052605,0.00031,120]
[327932516,1716668806144,-195.20511524,0.00013941,2]
[327932517,1716668806164,-17.07054933,0.00013941,2]
[327932530,1716669031529,-153.08036391,0.00013923,2]
[327932531,1716669031539,-151.86,0.00013925,2]
[327932532,1716669031550,-92.44985704,0.00013928,2]
[327932533,1716669031591,-2421.32198645,0.00013928,2]
[327932534,1716669031602,-1767.22891711,0.00013928,2]
[327932535,1716669031613,-272.44723899,0.00013929,2]
[327932536,1716669031624,-371.85090549,0.00013929,2]
[327932537,1716669031637,-629.57113553,0.00013929,2]
[327932538,1716669031650,-155.0,0.0001393,2]
[327932539,1716669031659,-2002.41206094,0.0001393,2]
[327932540,1716669031668,-3857.01270353,0.0001393,2]
[327932541,1716669031705,-575.95337144,0.0001393,2]
[327932542,1716669031715,-784.40549085,0.00013931,2]
[327932543,1716669031726,-2703.64113771,0.00013931,2]
[327932544,1716669031740,-599.9,0.00013931,2]
[327932545,1716669031753,-1322.12,0.00013931,2]
[327932546,1716669031774,-6321.76285648,0.00013931,2]
[327932547,1716669031785,-155.0,0.00013932,2]
[327932548,1716669031793,-150.0,0.00013932,2]
[327932549,1716669031802,-507269.39817377,0.00013934,2]
[327932550,1716669031814,-40198.8173,0.00013934,2]
[327932551,1716669031825,-284.1080006,0.00013934,2]
[327932552,1716669031836,-982.83165655,0.00013934,2]
[327932553,1716669031848,-1243.27919344,0.00013934,2]
[327932555,1716669031858,-27586.1865127,0.00013934,2]
[327932557,1716669031870,-2077.5,0.00013934,2]
[327932560,1716669031889,-503.15430007,0.00013934,2]
[327932578,1716669037527,-2928.06624738,0.00013934,2]
[327932580,1716669037540,-1659.99434364,0.00013934,2]
[327932582,1716669037553,-2040.00565636,0.00013934,2]
[327932585,1716669037564,-17579.208608,0.00013934,2]
[327932588,1716669037597,-3498.68,0.00013934,2]
[327932590,1716669037608,-18045.0000001,0.00013934,2]
[327932591,1716669037619,-2623.71743867,0.00013934,2]
[327932592,1716669037630,-24385.57753631,0.00013934,2]
[327932593,1716669037659,-671.16000004,0.00013934,2]
[327932594,1716669037779,-35662.09451184,0.00013934,2]
[327932595,1716669037788,-155592.667068,0.00013935,2]
[327932596,1716669037797,-151.06,0.00013973,2]
[327932597,1716669037806,-667.82,0.00014502,2]
[327932598,1716669037816,-210.0,0.00015325,2]
[327932599,1716669037825,-23890.0,0.00016158,2]
[327932600,1716669037835,-500.0,0.00016158,2]
[327932601,1716669037844,-173.66,0.00016223,2]
[327932602,1716669037853,-250.0,0.00016348,2]
[327932603,1716669037862,-151.25,0.00016366,2]
[327932604,1716669037872,-1000.94,0.00016419,2]
[327932605,1716669037881,-499.99,0.00016419,2]
[327932606,1716669037890,-278.26,0.00016419,2]
[327932607,1716669037899,-1211.85,0.00016419,2]
[327932608,1716669037909,-2950.8,0.00016419,2]
[327932609,1716669037918,-487.73,0.00016636,2]
[327932610,1716669037928,-600.0,0.0001673,2]
[327932611,1716669037937,-200.0,0.0001673,2]
[327932612,1716669037946,-667.82,0.00016765,2]
[327932613,1716669037955,-215.0,0.00016857,2]
[327932614,1716669037964,-200.0,0.000169,6]
[327932615,1716669037973,-167.0,0.00017103,2]
[327932616,1716669037983,-254.38273532,0.00017153,2]
[327932617,1716669037992,-150.0,0.00017228,2]
[327932618,1716669038001,-500.0,0.00017228,2]
[327932619,1716669038010,-156.80290554,0.00017251,2]
[327932620,1716669038020,-269.36660307,0.00017251,2]
[327932622,1716669038029,-167.01610586,0.00017251,2]
[327932624,1716669038039,-156.1151725,0.00017251,2]
[327932626,1716669038048,-309.49146638,0.00017251,2]
[327932628,1716669038057,-194.38792793,0.00017251,2]
[327932630,1716669038066,-405.14365341,0.00017252,2]
[327932632,1716669038075,-499.99,0.00017253,2]
[327932633,1716669038085,-4797.72892935,0.00017256,2]
[327932635,1716669038094,-164.18,0.00017355,2]
[327932637,1716669038103,-192.93,0.00017458,2]
[327932639,1716669038112,-169.62,0.00018007,2]
[327932641,1716669038121,-600.0,0.00018821,2]
[327932643,1716669038130,-667.82,0.00019029,2]
[327932645,1716669038140,-254.3827353,0.00019062,2]
[327932647,1716669038149,-174.36,0.00019094,2]
[327932649,1716669038158,-400.0,0.00019329,2]
[327932651,1716669038167,-250.0,0.00019356,2]
[327932653,1716669038176,-638.02,0.00019391,2]
[327932654,1716669038185,-150.02,0.00019521,2]
[327932656,1716669038194,-150.02,0.00019553,2]
[327932658,1716669038203,-150.02,0.00019586,2]
[327932660,1716669038212,-150.02,0.00019618,2]
[327932662,1716669038222,-1000.0,0.00020796,2]
[327932663,1716669038231,-600.0,0.00020912,2]
[327932664,1716669038240,-254.3827353,0.00020971,2]
[327932665,1716669038249,-667.82,0.00021293,2]
[327932666,1716669038258,-1000.0,0.00021513,2]
[327932667,1716669038268,-400.0,0.00021745,2]
[327932668,1716669038277,-271.89,0.00021918,2]
[327932669,1716669038286,-250.0,0.00021918,2]
[327932670,1716669038296,-2000.0,0.00021918,2]
[327932671,1716669038305,-270.19939067,0.00022,2]
[327932672,1716669038315,-152.52547369,0.00022069,2]
[327932673,1716669038324,-638.02,0.00022131,2]
[327932674,1716669038333,-182.98503448,0.00022189,2]
[327932675,1716669038343,-154.20405101,0.00022343,2]
[327932676,1716669038353,-154.47076012,0.00022377,2]
[327932677,1716669038362,-154.47076012,0.00022607,2]
[327932678,1716669038372,-154.20664879,0.00022874,2]
[327932679,1716669038382,-254.3827353,0.0002288,2]
[327932680,1716669038391,-159.18081807,0.00022952,2]
[327932681,1716669038400,-600.0,0.00023003,2]
[327932682,1716669038409,-161.44222683,0.00023307,2]
[327932683,1716669038418,-154.20664879,0.00023385,2]
[327932684,1716669038428,-2005.18444528,0.000234,2]
[327932685,1716669038438,-667.82,0.00023557,2]
[327932686,1716669038447,-154.47076012,0.00023666,2]
[327932687,1716669038457,-154.47076012,0.00023684,2]
[327932688,1716669038466,-155.35051784,0.00023956,2]
[327932689,1716669038476,-259.8961719,0.00023994,2]
[327932690,1716669038486,-434.88311724,0.00024,2]
[327932691,1716669038495,-472.45726553,0.00024,2]
[327932692,1716669038509,-10000.0,0.00024137,2]
[327932693,1716669038518,-400.0,0.00024161,2]
[327932694,1716669038527,-180.0,0.0002423,2]
[327932695,1716669038537,-1000.0,0.00024352,2]
[327932696,1716669038547,-167.73321303,0.00024789,2]
[327932697,1716669038557,-176.12813558,0.00024789,2]
[327932698,1716669038566,-254.3827353,0.00024789,2]
[327932699,1716669038575,-500.0,0.000248,9]
[327932700,1716669038586,-638.02,0.0002487,2]
[327932701,1716669038595,-151.86,0.00024878,2]
[327932702,1716669038605,-151.86,0.00024878,2]
[327932703,1716669038614,-153.08036391,0.00024878,2]
[327932704,1716669038623,-11568.2554164,0.00024889,2]
[327932705,1716669038636,-2380.33593415,0.00024889,2]
[327932706,1716669038645,-7256.14364221,0.00024889,2]
[327932707,1716669038657,-2729.27086809,0.00024889,2]
[327932708,1716669038693,-3534.83939447,0.00024889,2]
[327932709,1716669038704,-428.33744571,0.00024889,2]
[327932710,1716669038713,-836.1967111,0.00024889,2]
[327932711,1716669038724,-510.25420385,0.00024889,2]
[327932712,1716669038736,-300.32,0.00024889,2]
[327932713,1716669038747,-1153.0,0.00024889,2]
[327932720,1716669040060,-820.14280387,0.00024889,2]
[327932721,1716669040252,-3668.99999996,0.00024889,2]
[327932722,1716669040288,-6659.6776317,0.00024889,2]
[327932723,1716669040299,-13948.59135048,0.00024889,2]
[327932724,1716669040309,-1101207.6793004,0.00024898,9]
[327932725,1716669040321,-274.785957,0.00024898,7]
[327932726,1716669040341,-228.856507,0.00024898,7]
[327932727,1716669040355,-151.0,0.00024898,7]
[327932728,1716669040365,-314.050654,0.00024898,7]
[327932729,1716669040375,-314.050654,0.00024898,7]
[327932730,1716669040385,-314.050654,0.00024898,7]
[327932731,1716669040396,-314.050654,0.00024898,7]
[327932732,1716669040406,-151.0,0.00024898,7]
[327932733,1716669040416,-151.0,0.00024898,7]
[327932734,1716669040427,-247.126253,0.00024898,7]
[327932735,1716669040438,-151.0,0.00024898,7]
[327932736,1716669040449,-200.132747,0.00024898,7]
[327932737,1716669040460,-151.0,0.00024898,7]
[327932738,1716669040471,-151.0,0.00024898,7]
[327932739,1716669040481,-300.762297,0.00024898,7]
[327932740,1716669040491,-151.0,0.00024898,7]
[327932741,1716669040502,-151.0,0.00024898,7]
[327932742,1716669040516,-151.0,0.00024898,7]
[327932743,1716669040532,-151.0,0.00024898,7]
[327932744,1716669040542,-151.0,0.00024898,7]
[327932745,1716669040554,-151.0,0.00024898,7]
[327932746,1716669040564,-151.0,0.00024898,7]
[327932747,1716669040575,-151.0,0.00024898,7]
[327932748,1716669040587,-151.0,0.00024898,7]
[327932749,1716669040598,-151.0,0.00024898,7]
[327932750,1716669040608,-151.0,0.00024898,7]
[327932751,1716669040618,-151.0,0.00024898,7]
[327932752,1716669040627,-151.0,0.00024898,7]
[327932753,1716669040638,-151.0,0.00024898,7]
[327932754,1716669040648,-248.75004,0.00024898,7]
[327932755,1716669040658,-45570.014841,0.00024898,2]
[327932756,1716669040668,-45570.01484095,0.00024898,2]
[327932757,1716669040680,-45570.01484095,0.00024898,2]
[327932758,1716669040691,-45570.01484095,0.00024898,2]
[327932759,1716669040702,-45570.01484095,0.00024898,2]
[327932760,1716669040712,-151.0,0.00024898,7]
[327932761,1716669040722,-43081.9567459,0.00024898,2]
[327932762,1716669040736,-2488.05809505,0.00024898,2]
[327932763,1716669040746,-375.338774,0.00024898,7]
[327932764,1716669040757,-800.0,0.000249,9]
[327932765,1716669040767,-173.0,0.00025,2]
[327932766,1716669040777,-600.0,0.00025095,2]
[327932767,1716669040787,-1500.0,0.000252,2]
[327932768,1716669040797,-1000.0,0.00025636,2]
[327932769,1716669040808,-1200.0,0.00025636,2]
[327932770,1716669040818,-12368.21904831,0.00025654,2]
[327932771,1716669040830,-13948.59135048,0.0002582,2]
[327932772,1716669040840,-667.82,0.00025821,2]
[327932773,1716669040851,-1094.73660363,0.0002583,2]
[327932775,1716669040861,-555.75,0.00025857,2]
[327932776,1716669040871,-357.0,0.00025857,2]
[327932777,1716669040882,-5760.0,0.00025857,2]
[327932778,1716669040892,-298.357,0.00025857,2]
[327932779,1716669040901,-1644.0,0.00025857,2]
[327932780,1716669040911,-1225.0,0.00025857,2]
[327932782,1716669040921,-439.0,0.00025857,2]
[327932783,1716669040933,-616.615,0.00025857,2]
[327932784,1716669040942,-1263.0,0.00025857,2]
[327932785,1716669040952,-5135.0,0.00025857,2]
[327932786,1716669040961,-445.0,0.00025857,2]
[327932787,1716669040971,-37904.0,0.00025857,2]
[327932788,1716669040981,-218.065,0.00025857,2]
[327932789,1716669040991,-798.0,0.00025857,2]
[327932790,1716669041001,-2395.0,0.00025857,2]
[327932791,1716669041010,-190.23,0.00025857,2]
[327932792,1716669041020,-1465.0,0.00025857,2]
[327932793,1716669041030,-1138.0,0.00025857,2]
[327932794,1716669041039,-156.937,0.00025857,2]
[327932795,1716669041049,-1649.0,0.00025857,2]
[327932796,1716669041059,-215.0,0.00025857,2]
[327932797,1716669041068,-3163.0,0.00025857,2]
[327932798,1716669041078,-1061.0,0.00025857,2]
[327932799,1716669041088,-151.0,0.00025857,7]
[327932800,1716669041098,-151.0,0.00025857,7]
[327932801,1716669041108,-151.0,0.00025857,7]
[327932802,1716669041118,-151.0,0.00025857,7]
[327932803,1716669041128,-587.47854475,0.00025992,2]
[327932804,1716669041137,-1042.01517981,0.00025992,2]
[327932805,1716669041146,-450.50584888,0.00025992,7]
[327932806,1716669041156,-164.18,0.00025999,2]
[327932807,1716669041166,-1000.0,0.00026,5]
[327932808,1716669041175,-1000.0,0.00026,5]
[327932809,1716669041186,-1000.0,0.00026,5]
[327932810,1716669041195,-166.66666668,0.00026056,2]
[327932811,1716669041205,-153.55433201,0.00026127,2]
[327932812,1716669041215,-164.38,0.00026177,2]
[327932813,1716669041225,-1000.0,0.00026184,2]
[327932814,1716669041234,-1200.0,0.00026184,2]
[327932815,1716669041244,-151.0,0.00026214,7]
[327932816,1716669041254,-151.0,0.00026214,7]
[327932817,1716669041263,-800.0,0.00026247,2]
[327932818,1716669041272,-352.18,0.00026271,2]
[327932819,1716669041282,-201.36,0.00026271,2]
[327932820,1716669041291,-421.16,0.00026271,2]
[327932821,1716669041301,-352.18,0.00026271,2]
[327932822,1716669041310,-300.0,0.00026271,2]